fUSD/lending_fUSD_20250113
["ID","MTS","AMOUNT","RATE_DAILY","PERIOD"]
[348756713,1736773851596,-1125.93,9.997e-05,2]
[348756714,1736773851606,-500.0,9.997e-05,2]
[348756715,1736773851615,-5000.0,9.997e-05,2]
[348756716,1736773851627,-500.0,9.997e-05,2]
[348756717,1736773851636,-500.0,9.997e-05,2]
[348756718,1736773851646,-500.0,9.997e-05,2]
[348756719,1736773851656,-500.0,9.997e-05,2]
[348756720,1736773851666,-500.0,9.997e-05,2]
[348756721,1736773851676,-500.0,9.997e-05,2]
[348756722,1736773851686,-500.0,9.997e-05,2]
[348756723,1736773851696,-500.0,9.997e-05,2]
[348756724,1736773851706,-1116.03,9.997e-05,2]
[348756725,1736773851715,-500.0,9.997e-05,2]
[348756726,1736773851726,-501.66902297,9.997e-05,2]
[348756727,1736773851735,-500.0,9.997e-05,2]
[348756728,1736773851745,-500.0,9.997e-05,2]
[348756729,1736773851755,-500.0,9.997e-05,2]
[348756730,1736773851765,-500.0,9.997e-05,2]
[348756731,1736773851775,-500.0,9.997e-05,2]
[348756732,1736773851785,-500.0,9.997e-05,2]
[348756733,1736773851795,-500.0,9.997e-05,2]
[348756734,1736773851804,-1494.69,9.997e-05,2]
[348756735,1736773851814,-500.0,9.997e-05,2]
[348756736,1736773851823,-500.0,9.997e-05,2]
[348756737,1736773851833,-500.0,9.997e-05,2]
[348756738,1736773851843,-500.0,9.997e-05,2]
[348756739,1736773851853,-500.0,9.997e-05,2]
[348756740,1736773851862,-500.0,9.997e-05,2]
[348756741,1736773851874,-500.0,9.997e-05,2]
[348756742,1736773851884,-500.0,9.997e-05,2]
[348756743,1736773851893,-500.0,9.997e-05,2]
[348756744,1736773851903,-500.0,9.997e-05,2]
[348756745,1736773851912,-500.0,9.997e-05,2]
[348756746,1736773851922,-2597.04,9.997e-05,2]
[348756747,1736773851931,-500.0,9.997e-05,2]
[348756748,1736773851941,-500.0,9.997e-05,2]
[348756749,1736773851950,-500.0,9.997e-05,2]
[348756750,1736773851959,-500.0,9.997e-05,2]
[348756751,1736773851969,-500.0,9.997e-05,2]
[348756752,1736773851978,-1276.94,9.997e-05,2]
[348756753,1736773851988,-1862.47,9.997e-05,2]
[348756754,1736773851997,-1136.25,9.997e-05,2]
[348756755,1736773852007,-1424.75,9.997e-05,2]
[348756756,1736773852016,-500.0,9.997e-05,2]
[348756757,1736773852025,-1275.12,9.997e-05,2]
[348756758,1736773852035,-1790.95,9.997e-05,2]
[348756759,1736773852045,-1239.65,9.997e-05,2]
[348756760,1736773852055,-741.7,9.997e-05,2]
[348756761,1736773852064,-647.88,9.997e-05,2]
[348756762,1736773852074,-824.22,9.997e-05,2]
[348756763,1736773852083,-751.33,9.997e-05,2]
[348756764,1736773852093,-947.03,9.997e-05,2]
[348756765,1736773852103,-500.0,9.997e-05,2]
[348756766,1736773852112,-500.0,9.997e-05,2]
[348756767,1736773852123,-159.02886639,9.997e-05,2]
[348756768,1736773852132,-159.02886639,9.998e-05,2]
[348756769,1736773852142,-159.02886639,9.998e-05,2]
[348756770,1736773852151,-1247.15,9.998e-05,2]
[348756771,1736773852161,-1195.6,9.998e-05,2]
[348756772,1736773852170,-1524.39,9.998e-05,2]
[348756773,1736773852179,-1983.77,9.998e-05,2]
[348756774,1736773852189,-5457.9,9.998e-05,2]
[348756775,1736773852199,-757.28,9.998e-05,2]
[348756776,1736773852208,-636.79,9.998e-05,2]
[348756777,1736773852218,-519.85,9.998e-05,2]
[348756778,1736773852227,-2164.57,9.998e-05,2]
[348756779,1736773852237,-500.0,9.998e-05,2]
[348756780,1736773852247,-549.45,9.998e-05,2]
[348756781,1736773852256,-1372.06,9.998e-05,2]
[348756782,1736773852266,-818.41,9.998e-05,2]
[348756783,1736773852275,-30734.11876917,9.998e-05,2]
[348756784,1736773852284,-1264.34372812,9.998e-05,2]
[348756785,1736773852294,-159.02886639,9.998e-05,2]
[348756786,1736773852303,-159.02886639,9.999e-05,2]
[348756787,1736773852312,-2583.03,9.999e-05,2]
[348756788,1736773852322,-2583.03,9.999e-05,2]
[348756789,1736773852331,-2583.03,9.999e-05,2]
[348756790,1736773852341,-2583.03,9.999e-05,2]
[348756791,1736773852350,-2583.03,9.999e-05,2]
[348756792,1736773852360,-2583.03,9.999e-05,2]
[348756793,1736773852373,-2583.03,9.999e-05,2]
[348756794,1736773852384,-2583.03,9.999e-05,2]
[348756795,1736773852393,-2583.03,9.999e-05,2]
[348756796,1736773852403,-2583.03,9.999e-05,2]
[348756797,1736773852413,-2583.03,9.999e-05,2]
[348756798,1736773852423,-2583.03,9.999e-05,2]
[348756799,1736773852432,-2583.03,9.999e-05,2]
[348756800,1736773852441,-2583.03,9.999e-05,2]
[348756801,1736773852454,-2583.03,9.999e-05,2]
[348756802,1736773852464,-2583.03,9.999e-05,2]
[348756803,1736773852474,-2583.03,9.999e-05,2]
[348756804,1736773852483,-2583.03,9.999e-05,2]
[348756805,1736773852492,-2583.03,9.999e-05,2]
[348756806,1736773852502,-2583.03,9.999e-05,2]
[348756807,1736773852511,-2583.03,9.999e-05,2]
[348756808,1736773852521,-2583.05711341,9.999e-05,2]
[348756809,1736773852530,-3278.34,9.999e-05,2]
[348756810,1736773852539,-3278.34,9.999e-05,2]
[348756811,1736773852548,-3278.34,9.999e-05,2]
[348756812,1736773852558,-3278.34,9.999e-05,2]
[348756813,1736773852567,-3278.34,9.999e-05,2]
[348756814,1736773852576,-3278.34,9.999e-05,2]
[348756815,1736773852586,-3278.34,9.999e-05,2]
[348756816,1736773852595,-3278.34,9.999e-05,2]
[348756817,1736773852604,-3278.34,9.999e-05,2]
[348756818,1736773852614,-3278.34,9.999e-05,2]
[348756819,1736773852627,-3278.34,9.999e-05,2]
[348756820,1736773852636,-3278.34,9.999e-05,2]
[348756821,1736773852646,-3278.34,9.999e-05,2]
[348756822,1736773852656,-3278.34,9.999e-05,2]
[348756823,1736773852666,-3278.34,9.999e-05,2]
[348756824,1736773852676,-3278.34,9.999e-05,2]
[348756825,1736773852686,-3278.34,9.999e-05,2]
[348756826,1736773852695,-3278.34,9.999e-05,2]
[348756827,1736773852705,-3278.34,9.999e-05,2]
[348756828,1736773852715,-3278.34,9.999e-05,2]
[348756829,1736773852725,-3278.34,9.999e-05,2]
[348756830,1736773852735,-3278.56171386,9.999e-05,2]
[348756831,1736773852745,-500.0,9.999e-05,2]
[348756832,1736773852754,-500.0,9.999e-05,2]
[348756833,1736773852764,-500.0,9.999e-05,2]
[348756834,1736773852774,-1000.0,9.999e-05,2]
[348756835,1736773852783,-735.27,9.999e-05,2]
[348756836,1736773852792,-500.0,9.999e-05,2]
[348756837,1736773852802,-1122.61,9.999e-05,2]
[348756838,1736773852811,-159.02886639,9.999e-05,2]
[348756839,1736773852821,-159.02886639,0.0001,2]
[348756840,1736773852830,-1653836.03403678,0.0001,2]
[348756841,1736773852840,-934495.42936196,0.0001,2]
[348756842,1736773852849,-236981.29524433,0.0001,2]
[348756843,1736773852859,-6483.40797211,0.0001,4]
[348756844,1736773852873,-2980.19294879,0.0001,4]
[348756845,1736773852883,-174.71650596,0.0001,2]
[348756846,1736773852893,-826.840701,0.0001,2]
[348756847,1736773852904,-4900.0,0.0001,3]
[348756848,1736773852914,-166.50549518,0.0001,2]
[348756849,1736773852924,-1005.0,0.0001,2]
[348756850,1736773852934,-159.02886639,0.0001,2]
[348756851,1736773852944,-1007.0,0.0001,2]
[348756852,1736773852953,-860.07748041,0.0001,2]
[348756853,1736773852963,-3000.0,0.0001,2]
[348756854,1736773852973,-254.2,0.0001,2]
[348756855,1736773852982,-2068.98334823,0.0001,2]
[348756856,1736773852992,-2068.98334803,0.0001,2]
[348756857,1736773853002,-2068.98334803,0.0001,2]
[348756858,1736773853011,-2068.98334803,0.0001,2]
[348756859,1736773853021,-2068.98334803,0.0001,2]
[348756860,1736773853030,-2068.98334803,0.0001,2]
[348756861,1736773853039,-2068.98334803,0.0001,2]
[348756862,1736773853049,-620.73,0.00010024,2]
[348756863,1736773853058,-2068.98334803,0.00010076,2]
[348756864,1736773853068,-500.0,0.00010136,2]
[348756865,1736773853079,-752.52,0.00010137,2]
[348756866,1736773853088,-153.0,0.00010137,2]
[348756867,1736773853098,-250.0,0.00010171,2]
[348756868,1736773853107,-1000.0,0.000102,2]
[348756869,1736773853117,-1000.0,0.00010206,2]
[348756870,1736773853127,-2068.98334803,0.0001021,2]
[348756871,1736773853136,-2267.0,0.00010233,2]
[348756872,1736773853146,-581.78880063,0.00010256,2]
[348756873,1736773853155,-1495.77,0.00010269,2]
[348756874,1736773853167,-500.0,0.00010269,2]
[348756875,1736773853176,-4901.24,0.00010269,2]
[348756876,1736773853186,-516.84,0.00010269,2]
[348756877,1736773853196,-500.0,0.00010269,2]
[348756878,1736773853205,-500.0,0.00010269,2]
[348756879,1736773853215,-1154.59,0.00010269,2]
[348756880,1736773853225,-721.36,0.00010269,2]
[348756881,1736773853234,-1250.94,0.00010269,2]
[348756882,1736773853244,-2172.52,0.00010269,2]
[348756883,1736773853253,-500.0,0.00010269,2]
[348756884,1736773853264,-1739.31,0.00010269,2]
[348756885,1736773853273,-3812.19,0.00010269,2]
[348756886,1736773853283,-1080.68,0.00010269,2]
[348756887,1736773853292,-2146.84,0.00010269,2]
[348756888,1736773853302,-2120.16,0.00010269,2]
[348756889,1736773853312,-557.28,0.00010269,2]
[348756890,1736773853322,-1818.87,0.00010269,2]
[348756891,1736773853331,-1556.94,0.00010269,2]
[348756892,1736773853341,-1241.83,0.00010269,2]
[348756893,1736773853351,-1422.81,0.00010269,2]
[348756894,1736773853361,-1316.25,0.00010269,2]
[348756895,1736773853376,-500.0,0.00010269,2]
[348756896,1736773853385,-925.83,0.00010269,2]
[348756897,1736773853395,-2186.15,0.00010269,2]
[348756898,1736773853406,-997.96,0.00010269,2]
[348756899,1736773853415,-500.0,0.00010269,2]
[348756900,1736773853592,-837.48,0.00010269,2]
[348756901,1736773853602,-626.28,0.00010269,2]
[348756902,1736773853612,-500.0,0.00010269,2]
[348756903,1736773853624,-7410.188323,0.00010269,2]
[348756904,1736773853633,-500.0,0.00010269,2]
[348756905,1736773853642,-1772.62,0.00010269,2]
[348756906,1736773853651,-500.0,0.00010269,2]
[348756907,1736773853661,-2877.55,0.00010269,2]
[348756908,1736773853670,-1607.66,0.00010269,2]
[348756909,1736773853679,-500.0,0.00010269,2]
[348756910,1736773853688,-500.0,0.00010269,2]
[348756911,1736773853698,-366.67964517,0.00010269,2]
[348756912,1736773853707,-7387.105802,0.00010269,2]
[348756913,1736773853718,-1598.47,0.00010269,2]
[348756914,1736773853727,-500.0,0.00010269,2]
[348756915,1736773853736,-500.0,0.00010269,2]
[348756916,1736773853746,-500.0,0.00010269,2]
[348756917,1736773853755,-162.553205,0.00010269,2]
[348756918,1736773853764,-500.0,0.00010269,2]
[348756919,1736773853773,-840.88,0.00010269,2]
[348756920,1736773853782,-500.0,0.00010269,2]
[348756921,1736773853792,-643.25,0.00010269,2]
[348756922,1736773853800,-4142.48,0.00010269,2]
[348756923,1736773853810,-515.21,0.00010269,2]
[348756924,1736773853820,-500.0,0.00010269,2]
[348756925,1736773853829,-500.0,0.00010269,2]
[348756926,1736773853838,-500.0,0.00010269,2]
[348756927,1736773853847,-839.09,0.00010269,2]
[348756928,1736773853856,-1547.88,0.00010269,2]
[348756929,1736773853865,-633.86,0.00010269,2]
[348756930,1736773853876,-240.47050973,0.00010269,2]
[348756931,1736773853886,-500.0,0.0001027,2]
[348756932,1736773853896,-500.0,0.0001027,2]
[348756933,1736773853905,-500.0,0.0001027,2]
[348756934,1736773853915,-500.0,0.0001027,2]
[348756935,1736773853924,-500.0,0.0001027,2]
[348756936,1736773853933,-500.0,0.0001027,2]
[348756937,1736773853942,-500.0,0.0001027,2]
[348756938,1736773853952,-562.07,0.0001027,2]
[348756939,1736773853961,-500.0,0.0001027,2]
[348756940,1736773853970,-300.28232872,0.0001027,2]
[348756941,1736773853979,-500.0,0.0001027,2]
[348756942,1736773853988,-500.0,0.0001027,2]
[348756943,1736773853997,-500.0,0.0001027,2]
[348756944,1736773854007,-565.59,0.0001027,2]
[348756945,1736773854016,-500.0,0.0001027,2]
[348756946,1736773854025,-500.0,0.0001027,2]
[348756947,1736773854034,-187.83,0.0001027,2]
[348756948,1736773854043,-500.0,0.0001027,2]
[348756949,1736773854052,-500.0,0.0001027,2]
[348756950,1736773854061,-500.0,0.0001027,2]
[348756951,1736773854070,-500.0,0.0001027,2]
[348756952,1736773854080,-500.0,0.0001027,2]
[348756953,1736773854089,-500.0,0.0001027,2]
[348756954,1736773854099,-500.0,0.0001027,2]
[348756955,1736773854108,-500.0,0.0001027,2]
[348756956,1736773854120,-500.0,0.0001027,2]
[348756957,1736773854129,-500.0,0.0001027,2]
[348756958,1736773854139,-500.0,0.0001027,2]
[348756959,1736773854147,-500.0,0.0001027,2]
[348756960,1736773854157,-500.0,0.0001027,2]
[348756961,1736773854166,-500.0,0.0001027,2]
[348756962,1736773854175,-500.0,0.0001027,2]
[348756963,1736773854184,-500.0,0.0001027,2]
[348756964,1736773854193,-500.0,0.0001027,2]
[348756965,1736773854202,-500.0,0.0001027,2]
[348756966,1736773854211,-500.0,0.0001027,2]
[348756967,1736773854221,-500.0,0.0001027,2]
[348756968,1736773854230,-500.0,0.0001027,2]
[348756969,1736773854239,-500.0,0.0001027,2]
[348756970,1736773854248,-500.0,0.0001027,2]
[348756971,1736773854256,-500.0,0.0001027,2]
[348756972,1736773854266,-500.0,0.0001027,2]
[348756973,1736773854275,-500.0,0.0001027,2]
[348756974,1736773854284,-500.0,0.0001027,2]
[348756975,1736773854293,-500.0,0.0001027,2]
[348756976,1736773854302,-500.0,0.0001027,2]
[348756977,1736773854311,-500.0,0.0001027,2]
[348756978,1736773854320,-500.0,0.0001027,2]
[348756979,1736773854329,-500.0,0.0001027,2]
[348756980,1736773854338,-500.0,0.0001027,2]
[348756981,1736773854347,-500.0,0.0001027,2]
[348756982,1736773854357,-500.0,0.0001027,2]
[348756983,1736773854369,-500.0,0.0001027,2]
[348756984,1736773854386,-500.0,0.0001027,2]
[348756985,1736773854404,-500.0,0.0001027,2]
[348756986,1736773854413,-500.0,0.0001027,2]
[348756987,1736773854422,-500.0,0.0001027,2]
[348756988,1736773854431,-500.0,0.0001027,2]
[348756989,1736773854441,-500.0,0.0001027,2]
[348756990,1736773854450,-500.0,0.0001027,2]
[348756991,1736773854459,-500.0,0.0001027,2]
[348756992,1736773854468,-500.0,0.0001027,2]
[348756993,1736773854477,-500.0,0.0001027,2]
[348756994,1736773854487,-500.0,0.0001027,2]
[348756995,1736773854496,-500.0,0.0001027,2]
[348756996,1736773854505,-500.0,0.0001027,2]
[348756997,1736773854515,-500.0,0.0001027,2]
[348756998,1736773854525,-291.50936908,0.0001027,2]
[348756999,1736773854535,-500.0,0.0001027,2]
[348757000,1736773854544,-500.0,0.0001027,2]
[348757001,1736773854553,-500.0,0.0001027,2]
[348757002,1736773854563,-500.0,0.0001027,2]
[348757003,1736773854572,-500.0,0.0001027,2]
[348757004,1736773854581,-392.19398374,0.0001027,2]
[348757005,1736773854591,-500.0,0.0001027,2]
[348757006,1736773854600,-500.0,0.0001027,2]
[348757007,1736773854609,-500.0,0.0001027,2]
[348757008,1736773854619,-500.0,0.0001027,2]
[348757009,1736773854628,-508.72,0.0001027,2]
[348757010,1736773854637,-500.0,0.0001027,2]
[348757011,1736773854646,-500.0,0.0001027,2]
[348757012,1736773854655,-500.0,0.0001027,2]
[348757013,1736773854664,-500.0,0.0001027,2]
[348757014,1736773854673,-500.0,0.0001027,2]
[348757015,1736773854683,-500.0,0.0001027,2]
[348757016,1736773854692,-500.0,0.0001027,2]
[348757017,1736773854701,-500.0,0.0001027,2]
[348757018,1736773854710,-500.0,0.0001027,2]
[348757019,1736773854719,-500.0,0.0001027,2]
[348757020,1736773854728,-500.0,0.0001027,2]
[348757021,1736773854738,-500.0,0.0001027,2]
[348757022,1736773854747,-500.0,0.0001027,2]
[348757023,1736773854756,-521.56438236,0.0001027,2]
[348757024,1736773854765,-500.0,0.0001027,2]
[348757025,1736773854774,-500.0,0.0001027,2]
[348757026,1736773854784,-500.0,0.0001027,2]
[348757027,1736773854793,-500.0,0.0001027,2]
[348757028,1736773854802,-500.0,0.0001027,2]
[348757029,1736773854812,-500.0,0.0001027,2]
[348757030,1736773854821,-500.0,0.0001027,2]
[348757031,1736773854830,-500.0,0.0001027,2]
[348757032,1736773854840,-500.0,0.0001027,2]
[348757033,1736773854850,-500.94699344,0.0001027,2]
[348757034,1736773854859,-189.57054335,0.0001027,2]
[348757035,1736773854870,-500.0,0.0001027,2]
[348757036,1736773854879,-500.0,0.0001027,2]
[348757037,1736773854888,-500.0,0.0001027,2]
[348757038,1736773854897,-500.0,0.0001027,2]
[348757039,1736773854906,-500.0,0.0001027,2]
[348757040,1736773854915,-500.0,0.0001027,2]
[348757041,1736773854924,-500.0,0.0001027,2]
[348757042,1736773854933,-500.0,0.0001027,2]
[348757043,1736773854943,-500.0,0.0001027,2]
[348757044,1736773854952,-500.0,0.0001027,2]
[348757045,1736773854961,-500.0,0.0001027,2]
[348757046,1736773854970,-500.0,0.0001027,2]
[348757047,1736773854980,-500.0,0.0001027,2]
[348757048,1736773854990,-500.0,0.0001027,2]
[348757049,1736773854999,-500.0,0.0001027,2]
[348757050,1736773855009,-500.0,0.0001027,2]
[348757051,1736773855018,-500.0,0.0001027,2]
[348757052,1736773855027,-500.0,0.0001027,2]
[348757053,1736773855036,-500.0,0.0001027,2]
[348757054,1736773855046,-500.0,0.0001027,2]
[348757055,1736773855055,-500.0,0.0001027,2]
[348757056,1736773855064,-500.0,0.0001027,2]
[348757057,1736773855073,-500.0,0.0001027,2]
[348757058,1736773855082,-500.0,0.0001027,2]
[348757059,1736773855091,-500.0,0.0001027,2]
[348757060,1736773855101,-500.0,0.0001027,2]
[348757061,1736773855110,-500.0,0.0001027,2]
[348757062,1736773855120,-500.0,0.0001027,2]
[348757063,1736773855129,-500.0,0.0001027,2]
[348757064,1736773855138,-500.0,0.0001027,2]
[348757065,1736773855148,-500.0,0.0001027,2]
[348757066,1736773855157,-500.0,0.0001027,2]
[348757067,1736773855167,-500.0,0.0001027,2]
[348757068,1736773855176,-342.17491081,0.0001027,2]
[348757069,1736773855185,-500.0,0.0001027,2]
[348757070,1736773855194,-500.0,0.0001027,2]
[348757071,1736773855203,-500.0,0.0001027,2]
[348757072,1736773855212,-500.0,0.0001027,2]
[348757073,1736773855222,-500.0,0.0001027,2]
[348757074,1736773855231,-794.81,0.0001027,2]
[348757075,1736773855240,-500.0,0.0001027,2]
[348757076,1736773855249,-500.0,0.0001027,2]
[348757077,1736773855258,-500.0,0.0001027,2]
[348757078,1736773855267,-500.0,0.0001027,2]
[348757079,1736773855276,-500.0,0.0001027,2]
[348757080,1736773855286,-500.0,0.0001027,2]
[348757081,1736773855295,-500.0,0.0001027,2]
[348757082,1736773855304,-500.0,0.0001027,2]
[348757083,1736773855313,-500.0,0.0001027,2]
[348757084,1736773855322,-894.21,0.0001027,2]
[348757085,1736773855333,-500.0,0.0001027,2]
[348757086,1736773855342,-500.0,0.0001027,2]
[348757087,1736773855352,-500.0,0.0001027,2]
[348757088,1736773855361,-500.0,0.0001027,2]
[348757089,1736773855375,-636.50453342,0.0001027,2]
[348757090,1736773855384,-500.0,0.0001027,2]
[348757091,1736773855393,-500.0,0.0001027,2]
[348757092,1736773855403,-500.0,0.0001027,2]
[348757093,1736773855414,-500.0,0.0001027,2]
[348757094,1736773855423,-624.72,0.0001027,2]
[348757095,1736773855432,-500.0,0.0001027,2]
[348757096,1736773855442,-500.0,0.0001027,2]
[348757097,1736773855452,-500.0,0.0001027,2]
[348757098,1736773855462,-500.0,0.0001027,2]
[348757099,1736773855471,-500.0,0.0001027,2]
[348757100,1736773855482,-500.0,0.0001027,2]
[348757101,1736773855492,-500.0,0.0001027,2]
[348757102,1736773855501,-500.0,0.0001027,2]
[348757103,1736773855511,-191.18021797,0.0001027,2]
[348757104,1736773855520,-573.56,0.0001027,2]
[348757105,1736773855529,-500.0,0.0001027,2]
[348757106,1736773855538,-500.0,0.0001027,2]
[348757107,1736773855547,-874.55,0.0001027,2]
[348757108,1736773855556,-500.0,0.0001027,2]
[348757109,1736773855565,-500.0,0.0001027,2]
[348757110,1736773855574,-500.0,0.0001027,2]
[348757111,1736773855583,-500.0,0.0001027,2]
[348757112,1736773855592,-500.0,0.0001027,2]
[348757113,1736773855601,-500.0,0.0001027,2]
[348757114,1736773855610,-500.0,0.0001027,2]
[348757115,1736773855619,-500.0,0.0001027,2]
[348757116,1736773855629,-500.0,0.0001027,2]
[348757117,1736773855638,-500.0,0.0001027,2]
[348757118,1736773855647,-500.0,0.0001027,2]
[348757119,1736773855656,-500.0,0.0001027,2]
[348757120,1736773855665,-500.0,0.0001027,2]
[348757121,1736773855674,-500.0,0.0001027,2]
[348757122,1736773855683,-500.0,0.0001027,2]
[348757123,1736773855692,-500.0,0.0001027,2]
[348757124,1736773855701,-500.0,0.0001027,2]
[348757125,1736773855710,-500.0,0.0001027,2]
[348757126,1736773855719,-500.0,0.0001027,2]
[348757127,1736773855728,-500.0,0.0001027,2]
[348757128,1736773855737,-500.0,0.0001027,2]
[348757129,1736773855746,-500.0,0.0001027,2]
[348757130,1736773855755,-500.0,0.0001027,2]
[348757131,1736773855764,-500.0,0.0001027,2]
[348757132,1736773855773,-500.0,0.0001027,2]
[348757133,1736773855782,-500.0,0.0001027,2]
[348757134,1736773855790,-500.0,0.0001027,2]
[348757135,1736773855799,-500.0,0.0001027,2]
[348757136,1736773855809,-500.0,0.0001027,2]
[348757137,1736773855818,-544.09,0.0001027,2]
[348757138,1736773855826,-500.0,0.0001027,2]
[348757139,1736773855835,-500.0,0.0001027,2]
[348757140,1736773855845,-864.18,0.0001027,2]
[348757141,1736773855854,-500.0,0.0001027,2]
[348757142,1736773855863,-500.0,0.0001027,2]
[348757143,1736773855873,-500.0,0.0001027,2]
[348757144,1736773855882,-500.0,0.0001027,2]
[348757145,1736773855891,-500.0,0.0001027,2]
[348757146,1736773855900,-500.0,0.0001027,2]
[348757147,1736773855909,-500.0,0.0001027,2]
[348757148,1736773855918,-500.0,0.0001027,2]
[348757149,1736773855927,-500.0,0.0001027,2]
[348757150,1736773855936,-500.0,0.0001027,2]
[348757151,1736773855945,-500.0,0.0001027,2]
[348757152,1736773855954,-500.0,0.0001027,2]
[348757153,1736773855963,-500.0,0.0001027,2]
[348757154,1736773855972,-500.0,0.0001027,2]
[348757155,1736773855981,-500.0,0.0001027,2]
[348757156,1736773855990,-500.0,0.0001027,2]
[348757157,1736773856000,-613.92,0.0001027,2]
[348757158,1736773856011,-500.0,0.0001027,2]
[348757159,1736773856021,-500.0,0.0001027,2]
[348757160,1736773856030,-500.0,0.0001027,2]
[348757161,1736773856039,-500.0,0.0001027,2]
[348757162,1736773856048,-500.0,0.0001027,2]
[348757163,1736773856058,-500.0,0.0001027,2]
[348757164,1736773856067,-500.0,0.0001027,2]
[348757165,1736773856076,-665.78,0.0001027,2]
[348757166,1736773856086,-500.0,0.0001027,2]
[348757167,1736773856095,-616.26071411,0.0001027,2]
[348757168,1736773856104,-634.07,0.0001027,2]
[348757169,1736773856113,-670.59,0.0001027,2]
[348757170,1736773856124,-500.0,0.0001027,2]
[348757171,1736773856134,-500.76955504,0.0001027,2]
[348757172,1736773856143,-500.0,0.0001027,2]
[348757173,1736773856152,-500.0,0.0001027,2]
[348757174,1736773856161,-500.0,0.0001027,2]
[348757175,1736773856171,-500.0,0.0001027,2]
[348757176,1736773856181,-500.0,0.0001027,2]
[348757177,1736773856190,-500.0,0.0001027,2]
[348757178,1736773856199,-500.0,0.0001027,2]
[348757179,1736773856208,-500.0,0.0001027,2]
[348757180,1736773856218,-628.8,0.0001027,2]
[348757181,1736773856227,-500.0,0.0001027,2]
[348757182,1736773856236,-500.0,0.0001027,2]
[348757183,1736773856245,-342.10314762,0.0001027,2]
[348757184,1736773856254,-959.46,0.0001027,2]
[348757185,1736773856264,-500.0,0.0001027,2]
[348757186,1736773856272,-534.19716123,0.0001027,2]
[348757187,1736773856281,-796.53,0.0001027,2]
[348757188,1736773856290,-500.0,0.0001027,2]
[348757189,1736773856300,-689.68,0.0001027,2]
[348757190,1736773856311,-500.0,0.0001027,2]
[348757191,1736773856321,-500.0,0.0001027,2]
[348757192,1736773856330,-500.0,0.0001027,2]
[348757193,1736773856339,-500.0,0.0001027,2]
[348757194,1736773856348,-500.0,0.0001027,2]
[348757195,1736773856357,-500.0,0.0001027,2]
[348757196,1736773856367,-502.91287248,0.0001027,2]
[348757197,1736773856380,-708.66,0.0001027,2]
[348757198,1736773856390,-461.82692995,0.0001027,2]
[348757199,1736773856399,-500.0,0.0001027,2]
[348757200,1736773856408,-500.0,0.0001027,2]
[348757201,1736773856419,-500.0,0.0001027,2]
[348757202,1736773856428,-500.0,0.0001027,2]
[348757203,1736773856438,-552.24,0.0001027,2]
[348757204,1736773856447,-500.0,0.0001027,2]
[348757205,1736773856457,-500.0,0.0001027,2]
[348757206,1736773856468,-500.0,0.0001027,2]
[348757207,1736773856479,-500.0,0.0001027,2]
[348757208,1736773856489,-500.0,0.0001027,2]
[348757209,1736773856499,-500.0,0.0001027,2]
[348757210,1736773856507,-808.9,0.0001027,2]
[348757211,1736773856516,-500.0,0.0001027,2]
[348757212,1736773856526,-500.0,0.0001027,2]